[Event "CIS Master Groups 2024"]
[Site "Vasto"]
[Date "2024.04.13"]
[Round "8.18"]
[White "Genocchio, Daniele"]
[Black "Cereda, Loris"]
[Result "1-0"]
[ECO "A12"]
[WhiteElo "2375"]
[BlackElo "2322"]
[Annotator "RC"]
[PlyCount "79"]
[EventDate "2024.04.07"]
[EventType "team-tourn"]
[EventCountry "ITA"]
[SourceTitle "playchess.com"]
[Source "ChessBase"]
[SourceQuality "1"]
[TimeControl "40/5400+30:900+30"]

1. Nf3 {[%emt 0:03:58]} d5 {[%emt 0:00:40]} 2. g3 {[%emt 0:00:34]} c6 {[%emt 0:00:17]} 3. Bg2 {[%emt 0:00:47]} Bg4 {[%emt 0:00:11]} 4. b3 {[%emt 0:01:10]} Nd7 {[%emt 0:00:41]} 5. Bb2 {[%emt 0:00:32]} Ngf6 {[%emt 0:03:25]} 6. O-O {[%emt 0:01:22]} e6 {[%emt 0:03:49]} 7. d3 {[%emt 0:02:28]} Qc7 {[%emt 0:05:03]} 8. c4 {[%emt 0:07:37]} Be7 {[%emt 0:03:16]} 9. Nbd2 {[%emt 0:05:37]} O-O {[%emt 0:00:41]} 10. Rc1 {[%emt 0:02:41]} Rad8 {[%emt 0:03:57]} 11. Rc2 {[%emt 0:03:28]} Rfe8 {[%emt 0:04:16]} 12. Qa1 {[%emt 0:01:38]} Bd6 {[%emt 0:04:21]} 13. Re1 {[%emt 0:05:08]} Qb8 {[%emt 0:06:52]} 14. Nf1 {[%emt 0:09:21]} e5 {[%emt 0:06:10]} 15. cxd5 {[%emt 0:03:05]} Nxd5 {[%emt 0:02:09]} 16. a3 {[%emt 0:01:43]} h6 {[%emt 0:05:31]} 17. N1d2 {[%emt 0:00:45]} Bc7 {[%emt 0:08:21]} 18. Qb1 {[%emt 0:16:45]} N7f6 {[%emt 0:04:41]} 19. Rc4 {[%emt 0:05:32]} Nb6 {[%emt 0:03:56]} 20. Rcc1 {[%emt 0:00:26]} Bf5 {[%emt 0:02:57]} 21. Qa1 {[%emt 0:01:19]} Bh7 {[%emt 0:02:05]} 22. Bh3 {[%emt 0:05:55]} Nbd5 {[%emt 0:02:30]} 23. Rc4 {[%emt 0:02:42]} Re7 {[%emt 0:06:50]} 24. Nh4 {[%emt 0:07:04]} Bb6 {[%emt 0:05:23]} 25. e4 {[%emt 0:00:31]} Nf4 {[%emt 0:03:22]} 26. gxf4 {[%emt 0:00:33]} Rxd3 {[%emt 0:00:20]} 27. Nhf3 {[%emt 0:01:21]} Bc7 {[%emt 0:05:59]} 28. Bf1 {[%emt 0:01:18]} Rd8 {[%emt 0:02:57]} 29. Rc5 {[%emt 0:02:07]} Ng4 {[%emt 0:00:19]} 30. h3 {[%emt 0:02:41]} Bb6 {[%emt 0:01:02]} 31. b4 {[%emt 0:00:05]} Bxc5 {[%emt 0:01:12]} 32. bxc5 {[%emt 0:00:04]} Nf6 {[%emt 0:01:43]} 33. Bxe5 {[%emt 0:00:21]} Qc8 {[%emt 0:00:29]} 34. f5 {[%emt 0:02:29]} Nxe4 {[%emt 0:01:09]} 35. Nxe4 {[%emt 0:01:48]} Qxf5 {[%emt 0:00:24]} 36. Bg2 {[%emt 0:00:34]} Rd3 {[%emt 0:00:21]} 37. Ng3 {[%emt 0:01:36]} Qg6 {[%emt 0:00:55]} 38. Bd6 {[%emt 0:01:50]} Re6 {[%emt 0:00:24]} 39. Ne5 {[%emt 0:00:19]} Rxe5 {[%emt 0:00:40]} 40. Qxe5 {[%emt 0:00:10]} 1-0

[Event "CIS Master Groups 2024"]
[Site "Vasto"]
[Date "2024.04.13"]
[Round "8.19"]
[White "Sedina, Elena"]
[Black "Lezzerini, Marco"]
[Result "1-0"]
[ECO "B22"]
[WhiteElo "2190"]
[BlackElo "2110"]
[Annotator "RC"]
[PlyCount "125"]
[EventDate "2024.04.07"]
[EventType "team-tourn"]
[EventCountry "ITA"]
[SourceTitle "playchess.com"]
[Source "ChessBase"]
[SourceQuality "1"]
[TimeControl "40/5400+30:900+30"]

1. e4 {[%emt 0:00:14]} c5 {[%emt 0:03:43]} 2. Nf3 {[%emt 0:00:11]} e6 {[%emt 0:00:08]} 3. c3 {[%emt 0:00:29]} Nf6 {[%emt 0:00:25]} 4. e5 {[%emt 0:00:26]} Nd5 {[%emt 0:00:05]} 5. a3 {[%emt 0:00:57]} Be7 {[%emt 0:01:51]} 6. d4 {[%emt 0:06:45]} cxd4 {[%emt 0:00:16]} 7. c4 {[%emt 0:01:21]} Nc7 {[%emt 0:01:59]} 8. Qxd4 {[%emt 0:01:35]} O-O {[%emt 0:04:14]} 9. Bd3 {[%emt 0:05:14]} f5 {[%emt 0:19:25]} 10. exf6 {[%emt 0:03:13]} Bxf6 {[%emt 0:00:23]} 11. Qe4 {[%emt 0:00:19]} g6 {[%emt 0:00:24]} 12. Nc3 {[%emt 0:05:49]} d5 {[%emt 0:04:41]} 13. Qe2 {[%emt 0:00:23]} Nc6 {[%emt 0:01:02]} 14. Bh6 {[%emt 0:07:40]} Rf7 {[%emt 0:08:19]} 15. h4 {[%emt 0:08:27]} Nd4 {[%emt 0:08:41]} 16. Nxd4 {[%emt 0:08:55]} Bxd4 {[%emt 0:00:02]} 17. Bg5 {[%emt 0:01:09]} Qd6 {[%emt 0:05:04]} 18. O-O {[%emt 0:13:40]} Bd7 {[%emt 0:12:10]} 19. Be3 {[%emt 0:05:46]} Bxe3 {[%emt 0:15:00]} 20. Qxe3 {[%emt 0:01:18]} Raf8 {[%emt 0:02:16]} 21. Ne2 {[%emt 0:19:08]} Bc6 {[%emt 0:01:58]} 22. Rad1 {[%emt 0:01:05]} Qe7 {[%emt 0:02:32]} 23. Qg3 {[%emt 0:02:19]} dxc4 {[%emt 0:02:07]} 24. Bxc4 {[%emt 0:00:03]} Qc5 {[%emt 0:01:18]} 25. Rd4 {[%emt 0:01:23]} Nd5 {[%emt 0:02:16]} 26. Qe5 {[%emt 0:02:15]} Qe7 {[%emt 0:00:49]} 27. Bxd5 {[%emt 0:02:36]} Bxd5 {[%emt 0:00:27]} 28. Nf4 {[%emt 0:00:06]} Rf5 {[%emt 0:01:59]} 29. Nxd5 {[%emt 0:00:10]} Qf7 {[%emt 0:00:00]} 30. Nf6+ {[%emt 0:01:51]} Rxf6 {[%emt 0:00:08]} 31. f3 {[%emt 0:00:26]} Rf5 {[%emt 0:00:23]} 32. Qe4 {[%emt 0:00:26]} Qf6 {[%emt 0:01:12]} 33. Re1 {[%emt 0:00:22]} Re8 {[%emt 0:00:54]} 34. Rd7 {[%emt 0:00:54]} Rf4 {[%emt 0:00:29]} 35. Qxb7 {[%emt 0:00:08]} Qxh4 {[%emt 0:00:10]} 36. Red1 {[%emt 0:00:37]} Ref8 {[%emt 0:00:42]} 37. Qb3 {[%emt 0:00:42]} Rxf3 {[%emt 0:00:54]} 38. Qxe6+ {[%emt 0:00:16]} Kh8 {[%emt 0:00:10]} 39. Qe5+ {[%emt 0:00:20]} R3f6 {[%emt 0:00:23]} 40. Rf1 {[%emt 0:00:15]} Kg8 {[%emt 0:00:55]} 41. Qd5+ {[%emt 0:16:09]} Kh8 {[%emt 0:02:15]} 42. Qe5 {[%emt 0:00:00]} Kg8 {[%emt 0:06:19]} 43. Rxf6 {[%emt 0:00:00]} Qxf6 {[%emt 0:03:27]} 44. Qxf6 {[%emt 0:00:00]} Rxf6 {[%emt 0:00:04]} 45. Rxa7 {[%emt 0:00:00]} Rb6 {[%emt 0:00:22]} 46. b4 {[%emt 0:00:00]} h5 {[%emt 0:00:25]} 47. Kf2 {[%emt 0:00:00]} Rb5 {[%emt 0:00:16]} 48. Ra5 {[%emt 0:00:00]} Rb7 {[%emt 0:00:30]} 49. b5 {[%emt 0:00:00]} Kf7 {[%emt 0:00:16]} 50. a4 {[%emt 0:00:00]} Ke6 {[%emt 0:01:42]} 51. Ra6+ {[%emt 0:00:00]} Kf5 {[%emt 0:00:10]} 52. b6 {[%emt 0:00:00]} h4 {[%emt 0:00:45]} 53. a5 {[%emt 0:00:00]} Rd7 {[%emt 0:00:16]} 54. Ra7 {[%emt 0:00:00]} Rd2+ {[%emt 0:00:07]} 55. Kf3 {[%emt 0:01:57]} Rd3+ {[%emt 0:00:10]} 56. Ke2 {[%emt 0:00:05]} Rg3 {[%emt 0:01:23]} 57. Kf2 {[%emt 0:02:20]} Rb3 {[%emt 0:00:11]} 58. Rf7+ {[%emt 0:00:18]} Kg4 {[%emt 0:00:17]} 59. b7 {[%emt 0:00:12]} Rb2+ {[%emt 0:00:14]} 60. Ke3 {[%emt 0:00:26]} Kg3 {[%emt 0:01:22]} 61. a6 {[%emt 0:00:13]} Rb3+ {[%emt 0:00:34]} 62. Kd4 {[%emt 0:00:09]} Kxg2 {[%emt 0:00:07]} 63. a7 {[%emt 0:00:06]} 1-0

[Event "CIS Master Groups 2024"]
[Site "Vasto"]
[Date "2024.04.13"]
[Round "8.21"]
[White "Zwirs, Nico"]
[Black "Jianu, Vlad-Cristian"]
[Result "1/2-1/2"]
[ECO "B15"]
[WhiteElo "2480"]
[BlackElo "2491"]
[Annotator "RC"]
[PlyCount "36"]
[EventDate "2024.04.07"]
[EventType "team-tourn"]
[EventCountry "ITA"]
[SourceTitle "playchess.com"]
[Source "ChessBase"]
[SourceQuality "1"]
[TimeControl "40/5400+30:900+30"]

1. e4 {[%emt 0:00:01]} c6 {[%emt 0:00:04]} 2. d4 {[%emt 0:00:08]} d5 {[%emt 0:00:05]} 3. Nc3 {[%emt 0:00:06]} dxe4 {[%emt 0:00:06]} 4. Nxe4 {[%emt 0:00:05]} Nf6 {[%emt 0:00:03]} 5. Nxf6+ {[%emt 0:00:19]} exf6 {[%emt 0:00:06]} 6. Be3 {[%emt 0:03:03]} Bd6 {[%emt 0:00:25]} 7. Bd3 {[%emt 0:02:52]} O-O {[%emt 0:00:11]} 8. Ne2 {[%emt 0:01:17]} Re8 {[%emt 0:00:28]} 9. O-O {[%emt 0:01:37]} Nd7 {[%emt 0:00:08]} 10. Re1 {[%emt 0:22:45]} Nf8 {[%emt 0:01:00]} 11. c3 {[%emt 0:09:28]} Qc7 {[%emt 0:08:21]} 12. Ng3 {[%emt 0:02:15]} Be6 {[%emt 0:14:44]} 13. Qh5 {[%emt 0:11:26]} Rad8 {[%emt 0:03:31]} 14. a3 {[%emt 0:06:24]} a6 {[%emt 0:05:04]} 15. b4 {[%emt 0:02:51]} b5 {[%emt 0:06:05]} 16. a4 {[%emt 0:05:34]} Ng6 {[%emt 0:15:26]} 17. Ne4 {[%emt 0:07:16]} Bd5 {[%emt 0:03:57]} 18. Nxd6 {[%emt 0:01:38]} Qxd6 {[%emt 0:00:08]} 1/2-1/2

[Event "CIS Master Groups 2024"]
[Site "Vasto"]
[Date "2024.04.13"]
[Round "8.22"]
[White "Yao, Stefano"]
[Black "Loiacono, Leonardo"]
[Result "1-0"]
[ECO "D45"]
[WhiteElo "2289"]
[BlackElo "2309"]
[Annotator "RC"]
[PlyCount "167"]
[EventDate "2024.04.07"]
[EventType "team-tourn"]
[EventCountry "ITA"]
[SourceTitle "playchess.com"]
[Source "ChessBase"]
[SourceQuality "1"]
[TimeControl "40/5400+30:900+30"]

1. d4 {[%emt 0:00:01]} e6 {[%emt 0:00:15]} 2. Nf3 {[%emt 0:00:15]} Nf6 {[%emt 0:00:06]} 3. c4 {[%emt 0:01:00]} d5 {[%emt 0:01:31]} 4. Nc3 {[%emt 0:01:36]} c6 {[%emt 0:02:13]} 5. e3 {[%emt 0:02:38]} Nbd7 {[%emt 0:00:05]} 6. Qc2 {[%emt 0:00:08]} b6 {[%emt 0:00:55]} 7. Bd3 {[%emt 0:05:23]} Bb7 {[%emt 0:00:10]} 8. O-O {[%emt 0:00:25]} Be7 {[%emt 0:04:16]} 9. b3 {[%emt 0:04:27]} dxc4 {[%emt 0:11:41]} 10. Bxc4 {[%emt 0:04:04]} O-O {[%emt 0:06:29]} 11. Rd1 {[%emt 0:02:18]} c5 {[%emt 0:04:35]} 12. d5 {[%emt 0:05:58]} exd5 {[%emt 0:00:06]} 13. Nxd5 {[%emt 0:00:05]} Nxd5 {[%emt 0:01:00]} 14. Bxd5 {[%emt 0:00:06]} Qc7 {[%emt 0:03:55]} 15. Bb2 {[%emt 0:06:53]} Bf6 {[%emt 0:05:58]} 16. h4 {[%emt 0:13:35]} Bxb2 {[%emt 0:10:16]} 17. Qxb2 {[%emt 0:00:04]} Nf6 {[%emt 0:01:00]} 18. Bxb7 {[%emt 0:00:50]} Qxb7 {[%emt 0:00:04]} 19. Rd3 {[%emt 0:05:39]} Rad8 {[%emt 0:03:34]} 20. Rad1 {[%emt 0:00:16]} Rxd3 {[%emt 0:00:10]} 21. Rxd3 {[%emt 0:00:06]} b5 {[%emt 0:00:53]} 22. Qe5 {[%emt 0:10:14]} c4 {[%emt 0:15:06]} 23. Rd1 {[%emt 0:05:32]} Re8 {[%emt 0:10:09]} 24. Qd4 {[%emt 0:01:44]} cxb3 {[%emt 0:02:03]} 25. axb3 {[%emt 0:00:01]} a5 {[%emt 0:00:07]} 26. Qc3 {[%emt 0:11:00]} Qb6 {[%emt 0:02:54]} 27. Nd4 {[%emt 0:00:20]} Ne4 {[%emt 0:05:17]} 28. Qc6 {[%emt 0:03:24]} Qxc6 {[%emt 0:00:31]} 29. Nxc6 {[%emt 0:00:01]} g5 {[%emt 0:06:11]} 30. hxg5 {[%emt 0:01:50]} Ra8 {[%emt 0:04:00]} 31. Ra1 {[%emt 0:10:05]} a4 {[%emt 0:00:00]} 32. Nd4 {[%emt 0:00:39]} Nc3 {[%emt 0:00:00]} 33. bxa4 {[%emt 0:01:32]} Rxa4 {[%emt 0:00:31]} 34. Rc1 {[%emt 0:01:02]} Rc4 {[%emt 0:00:41]} 35. Kf1 {[%emt 0:00:35]} b4 {[%emt 0:00:12]} 36. Ke1 {[%emt 0:00:23]} Rc5 {[%emt 0:00:51]} 37. f4 {[%emt 0:01:15]} Kg7 {[%emt 0:01:15]} 38. Rc2 {[%emt 0:00:27]} Ra5 {[%emt 0:00:00]} 39. Kd2 {[%emt 0:01:29]} Ra1 {[%emt 0:00:13]} 40. Kd3 {[%emt 0:00:13]} Nd5 {[%emt 0:00:35]} 41. Nf5+ {[%emt 0:10:58]} Kg6 {[%emt 0:00:04]} 42. g4 {[%emt 0:00:24]} h5 {[%emt 0:05:15]} 43. gxh6 {[%emt 0:01:28]} b3 {[%emt 0:03:21]} 44. Rb2 {[%emt 0:01:31]} Rg1 {[%emt 0:01:03]} 45. Kd4 {[%emt 0:03:28]} Nc7 {[%emt 0:02:13]} 46. Ne7+ {[%emt 0:00:42]} Kxh6 {[%emt 0:00:34]} 47. g5+ {[%emt 0:00:02]} Kg7 {[%emt 0:00:14]} 48. Rxb3 {[%emt 0:00:07]} Ne6+ {[%emt 0:00:39]} 49. Ke5 {[%emt 0:00:29]} Ra1 {[%emt 0:00:27]} 50. Nd5 {[%emt 0:01:02]} Ra4 {[%emt 0:01:08]} 51. Rc3 {[%emt 0:00:36]} Ra8 {[%emt 0:00:38]} 52. e4 {[%emt 0:01:11]} Re8 {[%emt 0:01:28]} 53. Nf6 {[%emt 0:00:09]} Ra8 {[%emt 0:00:02]} 54. Rh3 {[%emt 0:00:41]} Ra5+ {[%emt 0:00:24]} 55. Nd5 {[%emt 0:00:04]} Ra4 {[%emt 0:01:22]} 56. Rg3 {[%emt 0:00:40]} Nc5 {[%emt 0:00:14]} 57. Re3 {[%emt 0:00:17]} Ne6 {[%emt 0:00:24]} 58. g6 {[%emt 0:00:21]} Nd8 {[%emt 0:00:29]} 59. gxf7 {[%emt 0:01:47]} Nxf7+ {[%emt 0:00:02]} 60. Ke6 {[%emt 0:00:10]} Ra6+ {[%emt 0:00:30]} 61. Kf5 {[%emt 0:00:16]} Nh6+ {[%emt 0:01:28]} 62. Kg5 {[%emt 0:00:36]} Nf7+ {[%emt 0:01:57]} 63. Kg4 {[%emt 0:00:09]} Ra5 {[%emt 0:00:04]} 64. Rd3 {[%emt 0:00:37]} Ra4 {[%emt 0:00:36]} 65. Nc3 {[%emt 0:00:27]} Ra5 {[%emt 0:00:27]} 66. Rg3 {[%emt 0:00:33]} Kf8 {[%emt 0:00:38]} 67. Re3 {[%emt 0:00:47]} Nh6+ {[%emt 0:01:08]} 68. Kf3 {[%emt 0:00:09]} Rh5 {[%emt 0:00:26]} 69. Kg3 {[%emt 0:00:15]} Ra5 {[%emt 0:00:05]} 70. Rd3 {[%emt 0:00:51]} Nf7 {[%emt 0:00:29]} 71. Rd5 {[%emt 0:00:26]} Ra1 {[%emt 0:01:13]} 72. Nd1 {[%emt 0:01:27]} Ra4 {[%emt 0:00:29]} 73. Kf3 {[%emt 0:00:12]} Ra3+ {[%emt 0:00:23]} 74. Ne3 {[%emt 0:00:04]} Ke7 {[%emt 0:00:15]} 75. e5 {[%emt 0:02:31]} Nd8 {[%emt 0:01:29]} 76. f5 {[%emt 0:00:00]} Nc6 {[%emt 0:00:12]} 77. Rc5 {[%emt 0:00:00]} Kd7 {[%emt 0:00:47]} 78. Ke4 {[%emt 0:00:00]} Ra4+ {[%emt 0:00:24]} 79. Nc4 {[%emt 0:00:00]} Nd8 {[%emt 0:00:13]} 80. Kd5 {[%emt 0:00:14]} Ra6 {[%emt 0:00:20]} 81. Nd6 {[%emt 0:00:22]} Ke7 {[%emt 0:00:47]} 82. Rc7+ {[%emt 0:00:10]} Kf8 {[%emt 0:00:04]} 83. e6 {[%emt 0:00:11]} Ra5+ {[%emt 0:00:11]} 84. Ke4 {[%emt 0:00:14]} 1-0

[Event "CIS Master Groups 2024"]
[Site "Vasto"]
[Date "2024.04.13"]
[Round "8.23"]
[White "Damia, Angelo"]
[Black "Pitica, Silviu Valentin"]
[Result "1/2-1/2"]
[ECO "C28"]
[WhiteElo "2234"]
[BlackElo "2228"]
[Annotator "RC"]
[PlyCount "41"]
[EventDate "2024.04.07"]
[EventType "team-tourn"]
[EventCountry "ITA"]
[SourceTitle "playchess.com"]
[Source "ChessBase"]
[SourceQuality "1"]
[TimeControl "40/5400+30:900+30"]

1. e4 {[%emt 0:00:04]} e5 {[%emt 0:00:33]} 2. Bc4 {[%emt 0:00:48]} Nf6 {[%emt 0:00:23]} 3. d3 {[%emt 0:00:11]} Nc6 {[%emt 0:00:31]} 4. Nc3 {[%emt 0:02:09]} Na5 {[%emt 0:01:07]} 5. Qf3 {[%emt 0:00:33]} Nxc4 {[%emt 0:01:26]} 6. dxc4 {[%emt 0:00:04]} d6 {[%emt 0:20:01]} 7. h3 {[%emt 0:00:04]} c6 {[%emt 0:04:50]} 8. Bg5 {[%emt 0:24:34]} h6 {[%emt 0:03:03]} 9. Bxf6 {[%emt 0:06:23]} Qxf6 {[%emt 0:00:37]} 10. Qxf6 {[%emt 0:00:09]} gxf6 {[%emt 0:00:05]} 11. Nge2 {[%emt 0:00:04]} f5 {[%emt 0:01:28]} 12. f4 {[%emt 0:00:11]} Be6 {[%emt 0:05:22]} 13. exf5 {[%emt 0:10:16]} Bxf5 {[%emt 0:03:57]} 14. O-O-O {[%emt 0:02:26]} exf4 {[%emt 0:12:24]} 15. Nxf4 {[%emt 0:01:04]} O-O-O {[%emt 0:00:41]} 16. g4 {[%emt 0:01:17]} Bh7 {[%emt 0:07:13]} 17. Rhe1 {[%emt 0:09:10]} Bg7 {[%emt 0:01:39]} 18. Ne4 {[%emt 0:00:03]} Be5 {[%emt 0:02:57]} 19. Nd3 {[%emt 0:13:31]} Bg7 {[%emt 0:02:32]} 20. Nf4 {[%emt 0:05:27]} Be5 {[%emt 0:00:30]} 21. Nd3 {[%emt 0:00:54]} 1/2-1/2

[Event "CIS Master Groups 2024"]
[Site "Vasto"]
[Date "2024.04.13"]
[Round "8.24"]
[White "Davi, Alessandro"]
[Black "Stromboli, Carlo"]
[Result "0-1"]
[ECO "D03"]
[WhiteElo "2210"]
[BlackElo "2192"]
[Annotator "RC"]
[PlyCount "64"]
[EventDate "2024.04.07"]
[EventType "team-tourn"]
[EventCountry "ITA"]
[SourceTitle "playchess.com"]
[Source "ChessBase"]
[SourceQuality "1"]
[TimeControl "40/5400+30:900+30"]

1. d4 {[%emt 0:00:08]} Nf6 {[%emt 0:03:14]} 2. Nf3 {[%emt 0:00:25]} e6 {[%emt 0:02:44]} 3. Bg5 {[%emt 0:00:37]} d5 {[%emt 0:07:44]} 4. Nbd2 {[%emt 0:01:16]} Nbd7 {[%emt 0:10:56]} 5. e3 {[%emt 0:03:14]} Bd6 {[%emt 0:05:10]} 6. c4 {[%emt 0:07:04]} c6 {[%emt 0:06:35]} 7. Bd3 {[%emt 0:07:56]} dxc4 {[%emt 0:13:20]} 8. Nxc4 {[%emt 0:01:09]} Bb4+ {[%emt 0:01:18]} 9. Ke2 {[%emt 0:05:22]} Be7 {[%emt 0:05:27]} 10. a3 {[%emt 0:10:45]} c5 {[%emt 0:14:52]} 11. Rc1 {[%emt 0:16:53]} cxd4 {[%emt 0:06:58]} 12. Nxd4 {[%emt 0:02:03]} O-O {[%emt 0:03:27]} 13. Bf4 {[%emt 0:12:13]} Nd5 {[%emt 0:05:10]} 14. Bg3 {[%emt 0:00:13]} N7b6 {[%emt 0:00:23]} 15. Nxb6 {[%emt 0:03:37]} Qxb6 {[%emt 0:03:06]} 16. Qc2 {[%emt 0:01:57]} h6 {[%emt 0:01:49]} 17. Qb3 {[%emt 0:04:52]} Qxb3 {[%emt 0:05:23]} 18. Nxb3 {[%emt 0:00:07]} Bf6 {[%emt 0:00:22]} 19. e4 {[%emt 0:20:09]} Nb6 {[%emt 0:00:02]} 20. Rc2 {[%emt 0:00:00]} Bd7 {[%emt 0:01:53]} 21. Na5 {[%emt 0:00:00]} Rac8 {[%emt 0:00:02]} 22. Rxc8 {[%emt 0:00:00]} Rxc8 {[%emt 0:00:19]} 23. e5 {[%emt 0:00:00]} Be7 {[%emt 0:00:23]} 24. f3 {[%emt 0:00:00]} Na4 {[%emt 0:00:20]} 25. Nxb7 {[%emt 0:02:03]} Nxb2 {[%emt 0:00:09]} 26. Nd6 {[%emt 0:00:16]} Rc3 {[%emt 0:00:15]} 27. Bb5 {[%emt 0:00:37]} Rc2+ {[%emt 0:00:58]} 28. Ke3 {[%emt 0:00:55]} Bxd6 {[%emt 0:00:32]} 29. exd6 {[%emt 0:00:36]} Bxb5 {[%emt 0:00:03]} 30. Rb1 {[%emt 0:00:27]} f6 {[%emt 0:00:23]} 31. Be1 {[%emt 0:00:28]} e5 {[%emt 0:00:22]} 32. Bb4 {[%emt 0:00:20]} Re2# {[%emt 0:00:00]} 0-1

[Event "CIS Master Groups 2024"]
[Site "Vasto"]
[Date "2024.04.13"]
[Round "9.1"]
[White "Dardha, Daniel"]
[Black "Saric, Ivan"]
[Result "0-1"]
[ECO "E73"]
[WhiteElo "2630"]
[BlackElo "2670"]
[Annotator "RC"]
[PlyCount "168"]
[EventDate "2024.04.07"]
[EventType "team-tourn"]
[EventCountry "ITA"]
[SourceTitle "playchess.com"]
[Source "ChessBase"]
[SourceQuality "1"]
[TimeControl "40/5400+30:900+30"]

1. d4 {[%emt 1:05:44]} Nf6 {[%emt 1:05:41]} 2. c4 {[%emt 0:00:23]} g6 {[%emt 0:00:23]} 3. h4 {[%emt 0:00:27]} Bg7 {[%emt 0:00:26]} 4. Nc3 {[%emt 0:00:21]} d6 {[%emt 0:00:26]} 5. e4 {[%emt 0:00:25]} h5 {[%emt 0:00:47]} 6. Be2 {[%emt 0:00:30]} O-O {[%emt 0:00:31]} 7. Bg5 {[%emt 0:00:27]} a6 {[%emt 0:00:30]} 8. Qd2 {[%emt 0:02:26]} c5 {[%emt 0:00:48]} 9. d5 {[%emt 0:03:14]} b5 {[%emt 0:00:34]} 10. cxb5 {[%emt 0:00:21]} Qa5 {[%emt 0:02:06]} 11. bxa6 {[%emt 0:01:31]} Nbd7 {[%emt 0:00:58]} 12. Nf3 {[%emt 0:01:29]} Bxa6 {[%emt 0:00:27]} 13. O-O {[%emt 0:05:49]} Nxe4 {[%emt 0:00:42]} 14. Nxe4 {[%emt 0:00:23]} Qxd2 {[%emt 0:00:21]} 15. Nfxd2 {[%emt 0:00:51]} Bxe2 {[%emt 0:00:22]} 16. Bxe7 {[%emt 0:01:41]} Rfb8 {[%emt 0:06:54]} 17. Bxd6 {[%emt 0:00:36]} Rxb2 {[%emt 0:00:36]} 18. Rfe1 {[%emt 0:01:04]} Bd3 {[%emt 0:00:22]} 19. Nf3 {[%emt 0:00:48]} Rb6 {[%emt 0:02:09]} 20. Nxc5 {[%emt 0:06:00]} Rxd6 {[%emt 0:01:24]} 21. Nxd3 {[%emt 0:00:27]} Bxa1 {[%emt 0:00:21]} 22. Rxa1 {[%emt 0:00:22]} Rxd5 {[%emt 0:00:29]} 23. Nb4 {[%emt 0:01:02]} Rb5 {[%emt 0:00:49]} 24. Nc6 {[%emt 0:00:56]} Rb2 {[%emt 0:00:38]} 25. a4 {[%emt 0:00:53]} Ra6 {[%emt 0:00:57]} 26. Nfd4 {[%emt 0:00:35]} Nc5 {[%emt 0:00:57]} 27. Rc1 {[%emt 0:00:58]} Nd3 {[%emt 0:01:48]} 28. Ra1 {[%emt 0:01:30]} Nc5 {[%emt 0:01:45]} 29. Rc1 {[%emt 0:00:24]} Nb3 {[%emt 0:00:28]} 30. Nxb3 {[%emt 0:01:35]} Rxb3 {[%emt 0:00:22]} 31. Rc4 {[%emt 0:00:31]} Rb7 {[%emt 0:00:45]} 32. Nd4 {[%emt 0:00:59]} Rb1+ {[%emt 0:00:27]} 33. Kh2 {[%emt 0:00:21]} Ra1 {[%emt 0:00:26]} 34. Rc8+ {[%emt 0:00:42]} Kg7 {[%emt 0:00:21]} 35. Rc7 {[%emt 0:00:44]} R1xa4 {[%emt 0:00:29]} 36. Nf3 {[%emt 0:00:22]} Ra7 {[%emt 0:00:26]} 37. Rc5 {[%emt 0:00:51]} Rf4 {[%emt 0:00:25]} 38. Rc2 {[%emt 0:00:26]} Ra1 {[%emt 0:01:05]} 39. Kg3 {[%emt 0:00:31]} Rfa4 {[%emt 0:00:33]} 40. Rc7 {[%emt 0:00:37]} Rg4+ {[%emt 0:00:37]} 41. Kh2 {[%emt 0:15:21]} Ra2 {[%emt 0:16:07]} 42. Kg1 {[%emt 0:01:00]} Rb4 {[%emt 0:00:48]} 43. Rc1 {[%emt 0:01:04]} Rba4 {[%emt 0:00:58]} 44. g3 {[%emt 0:00:37]} Ra1 {[%emt 0:00:24]} 45. Rxa1 {[%emt 0:00:42]} Rxa1+ {[%emt 0:00:21]} 46. Kg2 {[%emt 0:00:01]} Kf6 {[%emt 0:00:43]} 47. Ng5 {[%emt 0:00:22]} Ra7 {[%emt 0:00:21]} 48. Nh3 {[%emt 0:00:50]} Kf5 {[%emt 0:00:31]} 49. Ng5 {[%emt 0:00:23]} f6 {[%emt 0:00:30]} 50. Nh3 {[%emt 0:00:27]} Ra4 {[%emt 0:00:58]} 51. Ng1 {[%emt 0:00:26]} Ke4 {[%emt 0:00:47]} 52. Nh3 {[%emt 0:00:23]} Kf5 {[%emt 0:02:49]} 53. Ng1 {[%emt 0:00:22]} g5 {[%emt 0:00:21]} 54. hxg5 {[%emt 0:00:31]} fxg5 {[%emt 0:00:22]} 55. Nf3 {[%emt 0:00:21]} g4 {[%emt 0:00:38]} 56. Nh4+ {[%emt 0:00:42]} Ke4 {[%emt 0:00:27]} 57. Ng6 {[%emt 0:00:36]} Ra2 {[%emt 0:00:37]} 58. Kf1 {[%emt 0:00:30]} Ra6 {[%emt 0:00:44]} 59. Nh4 {[%emt 0:00:22]} Kd3 {[%emt 0:00:31]} 60. Nf5 {[%emt 0:00:22]} Kd2 {[%emt 0:00:47]} 61. Ng7 {[%emt 0:00:33]} Ra5 {[%emt 0:00:52]} 62. Ne6 {[%emt 0:00:22]} Ra1+ {[%emt 0:00:23]} 63. Kg2 {[%emt 0:00:21]} Ke1 {[%emt 0:00:39]} 64. Nf4 {[%emt 0:00:29]} Rd1 {[%emt 0:00:57]} 65. Nxh5 {[%emt 0:00:46]} Rd2 {[%emt 0:00:21]} 66. Nf4 {[%emt 0:00:28]} Rxf2+ {[%emt 0:00:24]} 67. Kg1 {[%emt 0:00:21]} Rc2 {[%emt 0:01:00]} 68. Nd3+ {[%emt 0:00:43]} Ke2 {[%emt 0:01:03]} 69. Ne5 {[%emt 0:00:21]} Rc5 {[%emt 0:01:28]} 70. Nxg4 {[%emt 0:00:23]} Rg5 {[%emt 0:00:22]} 71. Nh6 {[%emt 0:01:11]} Rxg3+ {[%emt 0:01:27]} 72. Kh2 {[%emt 0:00:21]} Rg5 {[%emt 0:00:43]} 73. Nf7 {[%emt 0:00:21]} Rf5 {[%emt 0:01:00]} 74. Nd6 {[%emt 0:00:21]} Rf4 {[%emt 0:00:30]} 75. Kg2 {[%emt 0:00:44]} Kd3 {[%emt 0:00:28]} 76. Kg3 {[%emt 0:00:51]} Rf6 {[%emt 0:00:30]} 77. Ne8 {[%emt 0:00:32]} Re6 {[%emt 0:00:21]} 78. Nc7 {[%emt 0:00:21]} Re5 {[%emt 0:00:24]} 79. Kf4 {[%emt 0:00:42]} Kd4 {[%emt 0:00:22]} 80. Na6 {[%emt 0:00:28]} Re7 {[%emt 0:01:13]} 81. Nb4 {[%emt 0:00:32]} Rf7+ {[%emt 0:00:30]} 82. Kg5 {[%emt 0:00:23]} Rc7 {[%emt 0:00:25]} 83. Na6 {[%emt 0:00:35]} Rb7 {[%emt 0:00:34]} 84. Kf5 {[%emt 0:00:25]} Kc4 {[%emt 0:00:21]} 0-1

[Event "CIS Master Groups 2024"]
[Site "Vasto"]
[Date "2024.04.13"]
[Round "9.2"]
[White "Brunello, Sabino"]
[Black "Basso, Pier Luigi"]
[Result "1/2-1/2"]
[ECO "D14"]
[WhiteElo "2515"]
[BlackElo "2507"]
[Annotator "RC"]
[PlyCount "43"]
[EventDate "2024.04.07"]
[EventType "team-tourn"]
[EventCountry "ITA"]
[SourceTitle "playchess.com"]
[Source "ChessBase"]
[SourceQuality "1"]
[TimeControl "40/5400+30:900+30"]

1. c4 {[%emt 1:05:42]} c6 {[%emt 1:05:41]} 2. d4 {[%emt 0:00:31]} d5 {[%emt 0:00:22]} 3. Nc3 {[%emt 0:00:21]} Nf6 {[%emt 0:00:21]} 4. cxd5 {[%emt 0:00:27]} cxd5 {[%emt 0:00:21]} 5. Bf4 {[%emt 0:00:21]} Nc6 {[%emt 0:00:22]} 6. e3 {[%emt 0:00:22]} Bf5 {[%emt 0:00:25]} 7. Nf3 {[%emt 0:01:17]} e6 {[%emt 0:00:22]} 8. Rc1 {[%emt 0:00:25]} Bb4 {[%emt 0:01:51]} 9. Bb5 {[%emt 0:01:18]} O-O {[%emt 0:00:56]} 10. Bxc6 {[%emt 0:01:24]} bxc6 {[%emt 0:00:22]} 11. O-O {[%emt 0:00:22]} Rc8 {[%emt 0:02:03]} 12. Na4 {[%emt 0:01:28]} Bg4 {[%emt 0:00:35]} 13. Bg5 {[%emt 0:02:33]} Be7 {[%emt 0:01:53]} 14. Bxf6 {[%emt 0:04:45]} Bxf6 {[%emt 0:00:23]} 15. h3 {[%emt 0:00:21]} Bxf3 {[%emt 0:00:37]} 16. Qxf3 {[%emt 0:00:22]} Qa5 {[%emt 0:01:16]} 17. b3 {[%emt 0:03:55]} Be7 {[%emt 0:00:24]} 18. Rc2 {[%emt 0:00:43]} Rc7 {[%emt 0:00:22]} 19. Qe2 {[%emt 0:00:52]} c5 {[%emt 0:01:20]} 20. Rfc1 {[%emt 0:03:53]} Rfc8 {[%emt 0:00:23]} 21. dxc5 {[%emt 0:01:10]} Bxc5 {[%emt 0:00:25]} 22. Rxc5 {[%emt 0:00:25]} 1/2-1/2